bitfinex/quotes_ETHUSD_20250517
["timestamp","ask_amount","ask_price","bid_price","bid_amount"]
[1747490358119,4.06348352,2461.0,2460.8,0.8213]
[1747490358615,4.06325104,2461.1,2460.8,0.8213]
[1747490358820,4.06325104,2461.1,2460.8,1.51729169]
[1747490359318,4.06298257,2461.3,2460.9,8.936]
[1747490359531,12.43878745,2461.4,2460.9,12.99955291]
[1747490359823,4.06296119,2461.3,2460.9,8.936]
[1747490359989,4.06290254,2461.3,2460.9,8.936]
[1747490360329,12.43885302,2461.4,2460.9,14.85759896]
[1747490360621,4.0629131,2461.3,2460.9,14.85759896]
[1747490360781,4.0629131,2461.3,2460.9,10.79407398]
[1747490361317,12.4388174,2461.4,2460.9,14.85762552]
[1747490361624,4.06289561,2461.3,2460.9,14.85762552]
[1747490361829,4.06289561,2461.3,2461.0,1.63749172]
[1747490362191,0.8328,2461.7,2461.1,0.8213]
[1747490362386,4.06266224,2461.5,2461.2,0.55]
[1747490362593,4.06246995,2461.6,2461.2,0.55]
[1747490362787,4.06269443,2461.5,2461.2,0.55]
[1747490362996,4.06269443,2461.5,2461.2,1.25721199]
[1747490363816,8.371,2461.7,2461.2,1.25721199]
[1747490364131,4.06265336,2461.5,2461.2,0.55]
[1747490364920,4.0627427,2461.4,2461.2,0.55]
[1747490365095,8.369,2461.8,2461.2,0.55]
[1747490365296,4.06251026,2461.6,2461.4,0.55]
[1747490365489,4.06223341,2461.7,2461.4,0.55]
[1747490365685,4.06256347,2461.5,2461.4,0.55]
[1747490366223,8.369,2461.8,2461.1,0.8213]
[1747490366403,4.06305867,2461.2,2461.1,9.7563]
[1747490366591,4.06305867,2461.2,2460.9,0.48523629]
[1747490366592,4.06338886,2461.0,2460.9,0.48523629]
[1747490368192,4.06364341,2460.9,2460.6,0.8213]
[1747490368542,4.06364341,2460.9,2460.7,0.55]
[1747490368703,4.06364341,2460.9,2460.6,0.8213]
[1747490369024,4.06388426,2460.7,2460.6,8.385]
[1747490369713,4.06404941,2460.6,2460.5,8.87023629]
[1747490369939,4.06379023,2460.8,2460.5,8.87023629]
[1747490369940,4.06396919,2460.7,2460.5,8.87023629]
[1747490370246,4.06397374,2460.7,2460.5,0.48523629]
[1747490370446,4.06400041,2460.7,2460.5,8.385]
[1747490370848,4.06404941,2460.6,2460.5,8.385]
[1747490371954,4.06388426,2460.7,2460.6,0.55]
[1747490372253,8.362,2461.1,2460.7,4.06381232]
[1747490372449,0.8106,2461.3,2460.8,0.55]
[1747490372623,8.362,2461.3,2460.8,4.61367821]
[1747490372822,8.362,2461.3,2460.8,1.4998248]
[1747490373030,12.4249058,2461.3,2460.8,1.4998248]
[1747490373346,8.362,2461.3,2460.8,1.4998248]
[1747490373652,12.42491675,2461.3,2460.8,1.4998248]
[1747490373850,12.42491675,2461.3,2460.8,0.55]
[1747490374222,8.362,2461.3,2460.8,4.61366839]
[1747490374426,12.42502103,2461.3,2460.8,0.55]
[1747490374632,8.362,2461.3,2460.8,4.61368998]
[1747490375040,4.06265384,2461.5,2461.0,0.55]
[1747490375239,12.4214806,2461.6,2461.1,5.28867938]
[1747490375440,8.27450409,2461.8,2461.4,4.06264111]
[1747490375643,15.86500409,2461.8,2461.2,0.55]
[1747490375837,15.86500409,2461.8,2461.2,4.61298687]
[1747490376155,11.56807615,2461.8,2461.5,0.7642]
[1747490376360,4.06207206,2461.8,2461.5,0.7642]
[1747490377126,0.7685,2462.0,2461.5,0.7642]
[1747490377368,1.24725258,2462.3,2461.6,0.55]
[1747490377567,0.47875258,2462.3,2461.7,4.82628855]
[1747490377737,8.83475258,2462.3,2461.7,0.7642]
[1747490378063,4.06182369,2462.0,2461.8,8.385]
[1747490378961,0.7685,2462.5,2461.8,8.385]
[1747490379172,9.1235,2462.5,2461.9,0.55]
[1747490379330,12.41607455,2462.5,2461.9,4.61181744]
[1747490379677,12.41486403,2462.6,2462.1,0.55]
[1747490379848,4.0609137,2462.5,2462.1,0.55]
[1747490380270,4.06108077,2462.4,2462.1,0.55]
[1747490380571,4.06098557,2462.5,2462.1,0.55]
[1747490381102,0.8245,2462.7,2462.1,0.55]
[1747490381251,4.06107831,2462.5,2462.2,8.354]
[1747490381448,4.06081812,2462.6,2462.2,8.354]
[1747490381670,4.06086657,2462.6,2462.2,8.354]
[1747490381837,4.06096539,2462.5,2462.2,8.354]
[1747490383051,12.41266438,2462.7,2462.3,0.55]
[1747490383545,4.06066438,2462.7,2462.3,0.55]
[1747490383749,4.06028138,2462.9,2462.4,0.8063]
[1747490383952,4.06073073,2462.7,2462.4,0.8063]
[1747490384151,4.06041903,2462.8,2462.4,0.8063]
[1747490384459,4.06075246,2462.6,2462.4,0.8063]
[1747490384661,4.06085349,2462.6,2462.4,0.8063]
[1747490384883,4.0609137,2462.5,2462.4,0.8063]
[1747490385086,4.06118549,2462.4,2462.2,9.7093]
[1747490385473,4.06098646,2462.5,2462.2,9.7093]
[1747490385677,12.4093391,2462.9,2462.2,9.7093]
[1747490385678,4.06062588,2462.7,2462.2,9.7093]
[1747490385884,4.06100448,2462.5,2462.2,1.3563]
[1747490386165,4.06124355,2462.3,2462.1,8.352]
[1747490386360,4.06140849,2462.2,2462.1,8.352]
[1747490386595,4.06140849,2462.2,2462.1,0.55]
[1747490386765,4.06140849,2462.2,2462.1,8.902]
[1747490387511,4.06140849,2462.2,2462.1,0.55]
[1747490387806,4.0609137,2462.5,2461.8,1.3781]
[1747490387994,4.0619034,2461.9,2461.7,8.352]
[1747490388200,4.06223429,2461.7,2461.5,2.71333629]
[1747490388409,4.86309221,2462.1,2461.5,13.56235403]
[1747490388584,4.06211924,2461.8,2461.5,13.56235403]
[1747490388985,4.06211924,2461.8,2461.6,0.55]
[1747490389193,4.06194715,2461.9,2461.6,0.55]
[1747490389405,4.06223341,2461.7,2461.6,0.55]
[1747490389702,4.86389844,2461.6,2461.5,1.4]
[1747490390212,12.40439844,2461.6,2461.5,1.4]
[1747490390573,4.06239844,2461.6,2461.5,1.4]
[1747490390771,12.40339844,2461.6,2461.5,1.4]
[1747490391613,4.06239844,2461.6,2461.5,1.4]
[1747490397718,4.06218605,2461.8,2461.5,1.4]
[1747490397923,4.06239844,2461.6,2461.5,1.4]
[1747490400230,4.81289844,2461.6,2461.5,1.4]
[1747490400942,20.31890253,2461.6,2461.5,1.4]
[1747490401838,28.65090253,2461.6,2461.5,1.4]
[1747490403333,20.31890253,2461.6,2461.5,1.4]
[1747490403541,19.89840253,2461.6,2461.5,1.4]
[1747490403704,4.06239844,2461.6,2461.5,1.4]
[1747490403908,8.33,2461.7,2461.5,1.4]
[1747490404137,4.06237331,2461.7,2461.5,1.4]
[1747490404346,4.06239844,2461.6,2461.5,1.4]
[1747490406640,4.06232885,2461.7,2461.5,2.3754]
[1747490406844,4.06239844,2461.6,2461.5,1.4]
[1747490410023,4.06229398,2461.7,2461.5,1.4]
[1747490410557,4.06239844,2461.6,2461.5,1.4]
[1747490411566,4.06191103,2461.9,2461.5,1.4]
[1747490411567,4.06190812,2461.9,2461.5,2.169]
[1747490411733,4.06208831,2461.8,2461.5,2.169]
[1747490411922,4.06208831,2461.8,2461.5,3.6275703]
[1747490413961,4.06198422,2461.9,2461.5,3.6275703]
[1747490414124,4.06211188,2461.8,2461.5,3.6275703]
[1747490414324,4.06198311,2461.9,2461.5,3.6275703]
[1747490414564,4.06207065,2461.8,2461.5,3.6275703]
[1747490416264,0.7961,2462.3,2461.9,4.06181077]
[1747490416558,4.06104292,2462.5,2462.0,4.83042474]
[1747490416720,4.06065694,2462.7,2462.1,4.61147664]
[1747490417066,12.37753901,2462.8,2462.4,0.7687]
[1747490417758,12.37753901,2462.8,2462.4,9.0927]
[1747490417918,0.47875258,2463.0,2462.5,0.55]
[1747490417919,4.53884366,2463.0,2462.5,0.55]
[1747490418131,4.06031582,2462.9,2462.5,0.55]
[1747490418322,4.5389299,2463.0,2462.5,5.98127096]
[1747490418758,0.47875258,2463.0,2462.5,1.92037452]
[1747490418952,4.53884827,2463.0,2462.5,5.98121626]
[1747490419154,0.47875258,2463.0,2462.6,8.323]
[1747490419544,4.06033431,2462.9,2462.6,8.323]
[1747490419925,4.06033431,2462.9,2462.6,9.83030711]
[1747490420165,8.316,2463.2,2462.4,0.7687]
[1747490420463,4.06140849,2462.2,2462.1,0.48523629]
[1747490421354,4.06140849,2462.2,2462.1,1.29663629]
[1747490422164,4.06140849,2462.2,2462.1,0.8114]
[1747490423358,4.0609137,2462.5,2462.1,0.8114]
[1747490423562,4.06081715,2462.6,2462.1,2.13092257]
[1747490423737,8.31,2462.6,2462.1,6.23307836]
[1747490424063,12.37065212,2462.7,2462.3,0.55]
[1747490424426,4.06091928,2462.5,2462.3,0.55]
[1747490424740,4.06082096,2462.6,2462.3,0.55]
[1747490426061,4.06082096,2462.6,2462.3,1.22424837]
[1747490426257,4.06096859,2462.5,2462.1,2.13092257]
[1747490426450,4.06117225,2462.4,2462.2,8.872]
[1747490426655,4.06081525,2462.6,2462.2,8.872]
[1747490426853,4.06101358,2462.5,2462.2,8.872]
[1747490427156,4.06112607,2462.4,2462.2,8.872]
[1747490427671,4.06100394,2462.5,2462.2,8.872]
[1747490427875,4.06117568,2462.4,2462.2,8.872]
[1747490428081,8.307,2462.8,2462.2,1.65029226]
[1747490428373,4.0607635,2462.6,2462.2,0.55]
[1747490428669,4.0607635,2462.6,2462.2,12.9323831]
[1747490428871,8.304,2463.0,2462.3,0.8331]
[1747490429073,4.0609137,2462.5,2462.4,0.55]
[1747490429575,4.06107862,2462.4,2462.3,9.7041]
[1747490429776,4.06107862,2462.4,2462.3,8.871]
[1747490430186,4.06107862,2462.4,2462.3,8.321]
[1747490430380,4.06124355,2462.3,2462.2,8.321]
[1747490430580,4.06124355,2462.3,2462.0,8.321]
[1747490430800,0.7841,2462.9,2462.2,0.55]
[1747490430980,4.06115327,2462.4,2462.2,0.55]
[1747490431186,4.06113299,2462.4,2462.2,0.55]
[1747490431369,4.0607837,2462.6,2462.2,0.55]
[1747490431566,4.06090578,2462.6,2462.3,8.321]
[1747490431769,4.06051327,2462.8,2462.3,13.75880331]
[1747490431972,16.59210409,2463.0,2462.4,0.8331]
[1747490432174,4.06045426,2462.8,2462.4,0.8331]
[1747490432480,16.59210409,2463.0,2462.4,0.8331]
[1747490432681,4.06076644,2462.6,2462.5,8.321]
[1747490433395,7.50600409,2463.0,2462.5,9.91741665]
[1747490433609,4.06019058,2463.0,2462.7,0.8331]
[1747490433962,4.06026466,2462.9,2462.7,0.8331]
[1747490434196,4.0600096,2463.1,2462.7,0.8331]
[1747490434393,4.06009788,2463.0,2462.7,0.8331]
[1747490434596,8.3,2463.4,2462.7,0.8331]
[1747490434795,4.05994897,2463.1,2462.7,2.28591018]
[1747490434997,4.05994897,2463.1,2462.7,6.34648204]
[1747490435203,4.05962042,2463.3,2462.8,0.55]
[1747490435363,4.05962042,2463.3,2462.8,4.6103239]
[1747490435697,4.05962042,2463.3,2462.9,0.8227]
[1747490435897,4.05976591,2463.2,2463.0,8.321]
[1747490436066,8.299,2463.4,2463.0,8.321]
[1747490436396,4.05925281,2463.6,2463.1,1.3727]
[1747490436698,4.05927245,2463.5,2463.1,1.3727]
[1747490436864,8.298,2463.7,2463.1,1.3727]
[1747490437062,4.05953375,2463.4,2463.1,1.3727]
[1747490437507,4.05975966,2463.2,2463.1,0.8227]
[1747490437712,4.05975966,2463.2,2463.1,9.1427]
[1747490437913,12.35432262,2464.1,2463.2,1.3727]
[1747490438085,4.0591831,2463.6,2463.2,1.3727]
[1747490438285,4.05900301,2463.7,2463.2,5.43243814]
[1747490438818,4.05870104,2463.9,2463.4,0.55]
[1747490439015,4.05870104,2463.9,2463.2,0.8227]
[1747490439316,4.05911304,2463.6,2463.3,1.96168792]
[1747490439527,4.05902052,2463.7,2463.3,1.96168792]
[1747490440020,4.05868594,2463.9,2463.4,0.8227]
[1747490440188,4.05860627,2463.9,2463.4,0.8227]
[1747490440385,4.05879327,2463.8,2463.5,0.68438525]
[1747490440715,4.05879327,2463.8,2463.4,0.8227]
[1747490440716,4.05902152,2463.7,2463.6,8.319]
[1747490441700,8.292,2464.2,2463.6,8.319]
[1747490441901,4.05885651,2463.8,2463.6,8.319]
[1747490442102,4.05845281,2464.0,2463.6,8.319]
[1747490442299,4.05830013,2464.1,2463.6,8.319]
[1747490442525,4.05853838,2464.0,2463.8,0.8227]
[1747490442741,0.7648,2464.5,2463.9,0.55]
[1747490442905,4.05844155,2464.0,2463.9,0.55]
[1747490443092,4.05836091,2464.1,2463.9,0.55]
[1747490443504,12.34778724,2464.4,2463.8,0.8227]
[1747490443827,4.05860627,2463.9,2463.8,0.8227]
[1747490444123,4.05860627,2463.9,2463.8,9.1147]
[1747490444327,4.05860627,2463.9,2463.8,0.8227]
[1747490444624,4.05860627,2463.9,2463.8,9.1147]
[1747490444787,4.05860627,2463.9,2463.8,8.292]
[1747490445189,4.05893574,2463.7,2463.6,1.3092]
[1747490445390,4.05886532,2463.8,2463.6,9.6002]
[1747490445631,4.05893574,2463.7,2463.6,9.6002]
[1747490445804,4.05883897,2463.8,2463.6,9.6002]
[1747490446010,4.05893574,2463.7,2463.6,10.01022]
[1747490446204,4.05893574,2463.7,2463.6,1.71922]
[1747490446408,4.05893574,2463.7,2463.6,9.0502]
[1747490446640,4.05885869,2463.8,2463.6,9.0502]
[1747490446811,4.05893574,2463.7,2463.6,9.0502]
[1747490446996,4.05869281,2463.9,2463.6,9.0502]
[1747490447827,4.0588074,2463.8,2463.6,9.0502]
[1747490448014,4.0588074,2463.8,2463.7,8.291]
[1747490448595,4.05869501,2463.9,2463.6,0.7592]
[1747490448834,4.05852584,2464.0,2463.7,8.291]
[1747490448994,4.05857833,2464.0,2463.7,8.291]
[1747490449197,0.7648,2464.5,2463.8,0.55]
[1747490449435,4.05838503,2464.1,2463.8,0.55]
[1747490449740,8.284,2464.4,2463.7,8.291]
[1747490449944,4.05889066,2463.8,2463.7,0.55]
[1747490450109,4.058771,2463.8,2463.7,8.841]
[1747490450310,4.05893574,2463.7,2463.6,1.3092]
[1747490450510,4.05893574,2463.7,2463.6,9.6002]
[1747490450713,4.05883234,2463.8,2463.6,9.6002]
[1747490451011,4.05893574,2463.7,2463.6,9.6002]
[1747490451245,4.05884297,2463.8,2463.6,9.6002]
[1747490451701,4.05869988,2463.9,2463.6,9.6002]
[1747490451897,4.05869988,2463.9,2463.6,10.96615989]
[1747490452851,4.05797418,2464.3,2463.6,10.96615989]
[1747490452852,4.05877952,2463.8,2463.6,10.96615989]
[1747490453053,4.05847621,2464.0,2463.6,10.96615989]
[1747490453252,4.05878916,2463.8,2463.6,9.6002]
[1747490453551,8.281,2464.2,2463.6,8.291]
[1747490453552,4.05893574,2463.7,2463.6,8.291]
[1747490453952,4.05877535,2463.8,2463.6,8.291]
[1747490454352,8.28,2464.1,2463.6,8.291]
[1747490454353,4.05862501,2463.9,2463.6,8.291]
[1747490454555,4.05878794,2463.8,2463.6,8.291]
[1747490454719,4.05878794,2463.8,2463.7,8.29]
[1747490455956,4.05844155,2464.0,2463.7,8.29]
[1747490456291,4.05854822,2464.0,2463.7,9.52492491]
[1747490456455,4.05862289,2463.9,2463.7,9.52492491]
[1747490456656,4.05851365,2464.0,2463.7,8.29]
[1747490456966,4.05854489,2464.0,2463.8,0.8192]
[1747490457471,4.05860627,2463.9,2463.8,0.8192]
[1747490457972,4.05852917,2464.0,2463.8,0.8192]
[1747490458272,4.05838146,2464.1,2463.8,0.8192]
[1747490458441,4.05838146,2464.1,2463.8,2.13602814]
[1747490459269,4.05818286,2464.2,2463.9,0.55]
[1747490459673,4.05811216,2464.2,2463.9,0.55]
[1747490459847,4.05835387,2464.1,2463.9,0.55]
[1747490460259,4.05803501,2464.3,2463.9,0.55]
[1747490460464,7.50600409,2464.5,2464.0,0.26860281]
[1747490460465,12.33287053,2464.4,2464.0,0.26860281]
[1747490460786,12.33287053,2464.4,2464.1,0.765]
[1747490460948,0.8009,2464.8,2464.2,0.55]
[1747490461151,9.0749,2464.8,2464.2,8.84]
[1747490461377,4.05769842,2464.5,2464.2,8.84]
[1747490461577,4.05769842,2464.5,2464.3,0.9605]
[1747490462000,4.0574808,2464.6,2464.3,0.9605]
[1747490462206,4.05737381,2464.7,2464.3,0.9605]
[1747490462493,4.05737381,2464.7,2464.4,0.55]
[1747490462846,4.05714212,2464.8,2464.5,0.765]
[1747490463097,4.05731522,2464.7,2464.5,0.99255]
[1747490463251,4.05721681,2464.8,2464.5,0.99255]
[1747490463588,4.05730247,2464.7,2464.5,0.99255]
[1747490463894,4.05717392,2464.8,2464.5,0.99255]
[1747490464129,4.0570025,2464.9,2464.5,0.99255]
[1747490464596,4.05664427,2465.1,2464.7,0.55]
[1747490464778,4.0569373,2465.0,2464.8,0.765]
[1747490464985,4.0569373,2465.0,2464.8,9.054]
[1747490465186,4.05627829,2465.4,2465.0,0.55]
[1747490465373,4.0562786,2465.4,2465.0,0.55]
[1747490465550,4.05596514,2465.6,2465.0,0.59056359]
[1747490465756,4.05550121,2465.8,2465.3,0.55]
[1747490466002,1.47875258,2465.9,2465.8,0.55]
[1747490466164,1.47875258,2465.9,2465.8,18.842]
[1747490466356,1.47875258,2465.9,2465.8,22.89747895]
[1747490466552,1.0,2465.9,2465.8,22.89747895]
[1747490466758,1.0,2465.9,2465.8,33.59279015]
[1747490467255,2.02301801,2466.5,2466.1,0.55]
[1747490467482,4.05395136,2466.8,2466.3,0.55]
[1747490467688,0.47875258,2466.9,2466.5,0.55]
[1747490467907,0.47875258,2466.9,2466.8,1.315]
[1747490468071,0.47875258,2466.9,2466.8,22.89283492]
[1747490468269,0.47875258,2466.9,2466.8,30.36443565]
[1747490468592,0.47875258,2466.9,2466.8,34.71817445]
[1747490468770,2.62992341,2467.7,2467.0,13.36850628]
[1747490468964,2.62992341,2467.7,2467.6,0.765]
[1747490469191,6.6823004,2467.7,2467.3,0.765]
[1747490469393,2.62992341,2467.7,2467.4,0.55]
[1747490469891,2.62992341,2467.7,2467.3,0.765]
[1747490469892,4.05337655,2467.1,2467.0,9.049]
[1747490470100,4.05277751,2467.5,2467.1,0.55]
[1747490470303,2.62992341,2467.7,2467.1,8.834]
[1747490470972,4.05252066,2467.6,2467.1,8.834]
[1747490471176,2.62992341,2467.7,2467.0,0.765]
[1747490471395,4.05334198,2467.1,2467.0,0.55]
[1747490471607,4.05273313,2467.5,2466.8,18.074]
[1747490471608,8.262,2467.6,2466.8,17.524]
[1747490471913,4.05328312,2467.2,2466.9,0.55]
[1747490472201,4.0534007,2467.1,2466.9,0.55]
[1747490472404,12.31471239,2467.5,2466.9,0.55]
[1747490472604,4.05383492,2466.8,2466.5,8.74723629]
[1747490472914,4.05383492,2466.8,2466.6,0.55]
[1747490473572,4.0539321,2466.8,2466.5,8.262]
[1747490473816,8.259,2466.9,2466.1,26.5703]
[1747490474115,8.259,2466.9,2466.1,18.3103]
[1747490474116,4.05482118,2466.2,2466.1,18.3103]
[1747490474267,4.05511039,2466.1,2465.9,8.26]
[1747490474463,4.05531448,2465.9,2465.8,1.27853629]
[1747490474706,4.05506179,2466.1,2465.8,1.27853629]
[1747490475001,4.05473979,2466.3,2465.9,0.95385363]
[1747490475205,4.05395047,2466.8,2465.9,0.95385363]
[1747490475206,4.88094104,2467.0,2466.0,0.55]
[1747490475404,4.88094104,2467.0,2465.9,0.95385363]
[1747490475405,4.05399927,2466.7,2466.2,0.55]
[1747490475712,4.05410201,2466.7,2466.4,1.3433]
[1747490476014,4.05367059,2466.9,2466.0,0.7933]
[1747490476169,8.8273,2467.0,2465.7,9.0533]
[1747490476170,8.258,2466.6,2465.7,9.0533]
[1747490476363,4.05424502,2466.6,2466.0,4.05503335]
[1747490476568,4.05424502,2466.6,2466.1,0.55]
[1747490476784,4.05424502,2466.6,2466.3,0.55]
[1747490477002,4.05399927,2466.7,2466.0,0.7933]
[1747490477163,8.258,2466.8,2466.0,9.0533]
[1747490477612,4.05491742,2466.2,2466.0,9.0533]
[1747490477805,4.0549856,2466.1,2466.0,9.95863]
[1747490478006,4.0549856,2466.1,2466.0,9.0533]
[1747490478192,4.0549856,2466.1,2466.0,8.26]
[1747490478596,12.31185502,2466.8,2466.0,8.26]
[1747490478597,4.05480334,2466.3,2466.0,8.26]
[1747490478798,4.05252066,2467.6,2466.2,0.7876]
[1747490479002,4.05391966,2466.8,2466.3,0.55]
[1747490479311,4.05391966,2466.8,2466.3,4.60465317]
[1747490479493,4.05391966,2466.8,2466.5,0.55]
[1747490479678,4.05391966,2466.8,2466.5,8.809]
[1747490480079,4.05373505,2466.9,2466.5,8.809]
[1747490480294,8.256,2467.1,2466.5,0.55]
[1747490480501,12.30942622,2467.1,2466.3,0.55]
[1747490480817,0.8149,2467.3,2466.2,0.7876]
[1747490480818,4.05331437,2467.2,2466.4,8.259]
[1747490480989,4.05409414,2466.7,2466.4,8.259]
[1747490481181,4.05409414,2466.7,2466.2,5.39239254]
[1747490481182,4.05423012,2466.6,2466.3,8.809]
[1747490481381,4.05406039,2466.7,2466.3,9.76866]
[1747490481583,0.8149,2467.3,2466.3,13.82324663]
[1747490481584,12.30963213,2467.0,2466.3,13.82324663]
[1747490481777,4.05391582,2466.8,2466.3,13.82324663]
[1747490482190,8.256,2467.0,2466.3,1.50966]
[1747490482517,4.054438,2466.5,2466.3,0.55]
[1747490483523,4.05419838,2466.6,2466.3,0.55]
[1747490483826,4.05435138,2466.5,2466.3,0.55]
[1747490484309,4.05449237,2466.4,2466.3,0.55]
[1747490484908,4.05465677,2466.3,2466.2,0.7876]
[1747490485222,4.05416362,2466.6,2465.9,1.25903629]
[1747490485420,4.82618456,2466.8,2465.9,9.51703629]
[1747490485716,4.0549856,2466.1,2466.0,0.38389356]
[1747490486020,4.05401493,2466.7,2466.0,0.38389356]
[1747490486021,11.78429164,2467.0,2466.0,0.38389356]
[1747490486222,4.05399927,2466.7,2466.1,0.55]
[1747490486524,4.05418227,2466.6,2466.1,4.60490033]
[1747490486684,4.05330861,2467.2,2466.5,0.55]
[1747490486685,0.7722,2467.2,2466.5,0.55]
[1747490486882,4.05317296,2467.3,2466.7,0.55]
[1747490487086,8.254,2467.3,2466.6,0.55]
[1747490487300,4.05341881,2467.1,2466.8,0.55]
[1747490487635,4.05321605,2467.2,2466.8,0.55]
[1747490487920,4.05321605,2467.2,2466.9,0.38389356]
[1747490488223,4.05310568,2467.3,2467.0,0.55]
[1747490488397,4.05350628,2467.0,2466.9,0.93389356]
[1747490488603,4.05343195,2467.1,2466.9,0.93389356]
[1747490489123,4.05334534,2467.1,2466.9,0.55]
[1747490489486,4.05320307,2467.2,2466.9,0.55]
[1747490489688,4.82488583,2467.5,2467.0,0.55]
[1747490489987,8.252,2467.4,2467.0,0.55]
[1747490490184,4.05333308,2467.2,2467.0,0.55]
[1747490490388,4.05383492,2466.8,2466.7,8.258]
[1747490490620,19.81097072,2467.4,2466.7,8.258]
[1747490490823,4.05383492,2466.8,2466.7,8.258]
[1747490491331,4.05367404,2466.9,2466.5,1.03523629]
[1747490491332,4.05416362,2466.6,2466.5,1.03523629]
[1747490491491,4.05416362,2466.6,2466.5,9.29323629]
[1747490491895,4.0540586,2466.7,2466.5,9.29323629]
[1747490492104,4.0540586,2466.7,2466.5,1.03523629]
[1747490492308,4.05416362,2466.6,2466.5,0.93489637]
[1747490492509,4.05416362,2466.6,2466.5,0.38489637]
[1747490493194,12.30516362,2466.6,2466.5,0.38489637]
[1747490493624,4.05416362,2466.6,2466.5,0.38489637]
[1747490493800,12.30516362,2466.6,2466.5,0.38489637]
[1747490494413,8.251,2466.6,2466.5,0.38489637]
[1747490494731,12.30516362,2466.6,2466.5,0.38489637]
[1747490494936,4.05416362,2466.6,2466.5,0.38489637]
[1747490497343,4.05416362,2466.6,2466.5,0.87013266]
[1747490498225,12.30416362,2466.6,2466.5,0.87013266]
[1747490499527,12.30416362,2466.6,2466.5,0.38489637]
[1747490499928,13.10886362,2466.6,2466.5,0.38489637]
[1747490500130,21.10886362,2466.6,2466.5,0.38489637]
[1747490500734,4.05465677,2466.3,2466.2,0.48523629]
[1747490501252,4.85935677,2466.3,2466.2,0.48523629]
[1747490501842,20.36536086,2466.3,2466.2,0.48523629]
[1747490502177,20.36536086,2466.3,2465.3,1.29496527]
[1747490502178,4.86050791,2465.6,2465.5,0.48523629]
[1747490502384,21.10950791,2465.6,2465.5,0.48523629]
[1747490505248,21.10950791,2465.6,2464.6,9.54496527]
[1747490505249,4.05692464,2465.0,2464.7,0.48523629]
[1747490505448,4.05692464,2465.0,2464.8,0.87352363]
[1747490506076,4.05673489,2465.1,2464.8,0.87352363]
[1747490506383,0.8047,2465.6,2464.9,0.55]
[1747490506555,0.8047,2465.6,2464.8,0.87352363]
[1747490506556,0.7803,2465.9,2465.1,0.55]
[1747490506751,4.05580791,2465.6,2465.1,8.801]
[1747490507067,4.05613693,2465.4,2465.3,0.55]
[1747490507553,4.05606502,2465.5,2465.3,0.55]
[1747490507944,4.05613693,2465.4,2465.3,0.55]
[1747490508281,4.056062,2465.5,2465.3,0.55]
[1747490508663,4.05620314,2465.4,2465.3,0.38626068]
[1747490508877,12.30490564,2465.6,2465.3,0.38626068]
[1747490509254,4.05602042,2465.5,2465.3,0.38626068]
[1747490509662,4.05602042,2465.5,2465.1,0.55]
[1747490509867,4.05602042,2465.5,2465.3,0.55]
[1747490510063,4.05613693,2465.4,2465.2,1.41329643]
[1747490510267,4.05630146,2465.3,2465.2,1.41329643]
[1747490510644,4.05647689,2465.2,2465.1,0.55]
[1747490511180,8.248,2465.6,2465.1,0.55]
[1747490511377,4.056466,2465.2,2465.0,0.79]
[1747490511584,4.05636943,2465.3,2465.0,0.79]
[1747490511787,4.05679513,2465.0,2464.9,0.48523629]
[1747490511943,4.05679513,2465.0,2464.9,1.61999045]
[1747490512148,4.05679513,2465.0,2464.9,0.48523629]
[1747490513163,4.05679513,2465.0,2464.9,0.38600695]
[1747490513348,4.05674503,2465.1,2464.9,0.38600695]
[1747490514394,4.05674503,2465.1,2464.8,0.55]
[1747490514703,0.8204,2465.9,2465.0,1.3134]
[1747490514999,4.055645,2465.7,2465.3,4.60627455]
[1747490515154,12.30256889,2465.8,2465.4,0.46062746]
[1747490515347,4.05538221,2465.9,2465.4,0.46062746]
[1747490515548,4.05571212,2465.7,2465.4,0.46062746]
[1747490516755,4.05581682,2465.6,2465.4,0.46062746]
[1747490517280,12.30237262,2465.9,2465.4,0.46062746]
[1747490517447,4.05558508,2465.8,2465.5,1.27008783]
[1747490518147,4.05558508,2465.8,2465.6,0.55]
[1747490518343,12.30082118,2466.2,2465.6,4.60565117]
[1747490518573,4.05507153,2466.1,2465.7,0.99316685]
[1747490518742,4.05507153,2466.1,2465.7,9.24516685]
[1747490520081,4.0545412,2466.4,2465.8,0.55]
[1747490520259,4.0546627,2466.3,2465.9,4.81864099]
[1747490520456,4.05443664,2466.5,2466.0,0.38647279]
[1747490520682,8.245,2466.6,2466.0,0.90698417]
[1747490520882,8.245,2466.6,2466.0,0.38647279]
[1747490520883,4.0549856,2466.1,2466.0,0.38647279]
[1747490521584,12.2989856,2466.1,2466.0,0.38647279]
[1747490522357,4.05573278,2465.7,2465.5,8.251]
[1747490522563,4.05597241,2465.5,2465.4,0.48523629]
[1747490523590,4.05597241,2465.5,2465.4,0.87215504]
[1747490524880,4.05630146,2465.3,2465.1,17.516]
[1747490525201,4.0562113,2465.4,2465.1,1.22073616]
[1747490525384,4.05601395,2465.5,2465.1,1.22073616]
[1747490525571,4.05601708,2465.5,2465.1,1.22073616]
[1747490525774,8.243,2465.6,2465.1,1.22073616]
[1747490525979,4.05655284,2465.2,2465.0,0.48523629]
[1747490526454,4.05663056,2465.1,2465.0,0.48523629]
[1747490527194,4.05663056,2465.1,2465.0,0.38733182]
[1747490527487,4.05655947,2465.2,2465.0,0.38733182]
[1747490527649,4.05638438,2465.3,2465.0,0.38733182]
[1747490528055,4.05638438,2465.3,2465.1,0.38733182]
[1747490528256,4.05633602,2465.3,2465.1,0.38733182]
[1747490528951,4.056466,2465.2,2465.1,0.38733182]
[1747490529660,4.05638945,2465.3,2465.1,0.38733182]
[1747490529853,4.05514355,2466.1,2465.2,1.3613]
[1747490530052,8.241,2466.1,2465.2,0.8113]
[1747490530264,4.05609206,2465.5,2465.2,0.8113]
[1747490530469,4.05590939,2465.6,2465.3,0.55]
[1747490530684,8.241,2465.7,2465.2,1.78616318]
[1747490530987,4.05612726,2465.5,2465.3,0.38733182]